[Event "37th Zalakaros Festival 2018"]
[Site "Zalakaros"]
[Date "2018.05.25"]
[Round "1"]
[White "Molnar Gabor, Roland"]
[Black "Csonka, Attila Istvan"]
[Result "0-1"]
[ECO "A46"]
[WhiteElo "2021"]
[BlackElo "2372"]
[Annotator "RC"]
[PlyCount "104"]
[EventDate "2018.??.??"]
[EventType "swiss"]
[EventCountry "HUN"]
[SourceTitle "playchess.com"]
[Source "ChessBase"]
[SourceQuality "1"]
[TimeControl "40/5400+30:1800+30"]

1. d4 {[%emt 0:00:06]} Nf6 {[%emt 0:00:36]} 2. Nf3 {[%emt 0:00:06]} e6 {[%emt 0:00:05]} 3. Bf4 {[%emt 0:00:20]} b6 {[%emt 0:00:11]} 4. e3 Bb7 5. Bd3 {[%emt 0:01:28]} Be7 {[%emt 0:03:26]} 6. h3 {[%emt 0:03:37]} O-O {[%emt 0:01:29]} 7. Nbd2 {[%emt 0:00:34]} d5 {[%emt 0:02:58]} 8. Ne5 {[%emt 0:02:17]} Nbd7 {[%emt 0:01:40]} 9. Qf3 {[%emt 0:01:00]} Nxe5 {[%emt 0:05:29]} 10. Bxe5 {[%emt 0:00:02]} c5 {[%emt 0:01:24]} 11. c3 {[%emt 0:00:02]} Qc8 {[%emt 0:05:13]} 12. h4 {[%emt 0:04:52]} Qc6 {[%emt 0:08:24]} 13. Qg3 {[%emt 0:17:30]} Rad8 {[%emt 0:11:36]} 14. Qg5 {[%emt 0:05:02]} cxd4 {[%emt 0:09:51]} 15. exd4 {[%emt 0:00:57]} h6 {[%emt 0:00:11]} 16. Qg3 {[%emt 0:03:50]} Bd6 {[%emt 0:00:49]} 17. Nf3 {[%emt 0:07:19]} Qc7 {[%emt 0:04:15]} 18. O-O {[%emt 0:03:29]} Bxe5 {[%emt 0:02:34]} 19. Nxe5 {[%emt 0:02:36]} Ne4 {[%emt 0:03:01]} 20. Qh3 {[%emt 0:11:20]} Rd6 {[%emt 0:03:18]} 21. Rad1 {[%emt 0:01:27]} b5 {[%emt 0:05:48]} 22. f3 {[%emt 0:03:47]} Nf6 {[%emt 0:00:11]} 23. g4 {[%emt 0:00:53]} Nd7 {[%emt 0:02:47]} 24. Nxd7 {[%emt 0:06:49]} Qxd7 {[%emt 0:01:49]} 25. g5 {[%emt 0:00:38]} h5 {[%emt 0:01:21]} 26. g6 {[%emt 0:02:30]} Qe7 {[%emt 0:04:39]} 27. gxf7+ {[%emt 0:04:19]} Rxf7 {[%emt 0:03:47]} 28. f4 {[%emt 0:00:57]} Rf6 {[%emt 0:01:05]} 29. Rd2 {[%emt 0:02:06]} b4 {[%emt 0:01:58]} 30. cxb4 {[%emt 0:01:16]} Rb6 {[%emt 0:00:09]} 31. a3 {[%emt 0:01:02]} Ba6 {[%emt 0:00:10]} 32. Rg2 {[%emt 0:05:06]} Bxd3 {[%emt 0:01:08]} 33. Qxd3 {[%emt 0:00:01]} Rc6 {[%emt 0:01:13]} 34. Rg5 {[%emt 0:00:25]} Qf7 {[%emt 0:00:40]} 35. Qd2 {[%emt 0:05:40]} Rc8 {[%emt 0:02:25]} 36. Kg2 {[%emt 0:00:53]} Rf5 {[%emt 0:01:37]} 37. Rf2 {[%emt 0:01:36]} Rf8 {[%emt 0:03:56]} 38. Kg3 {[%emt 0:00:15]} Qc7 {[%emt 0:01:57]} 39. Qc3 {[%emt 0:00:00]} Qd7 {[%emt 0:00:00]} 40. Qe3 {[%emt 0:00:00]} Qd6 {[%emt 0:04:53]} 41. Qc1 {[%emt 0:21:35]} Rxg5+ {[%emt 0:05:58]} 42. hxg5 {[%emt 0:00:02]} Rf5 {[%emt 0:01:02]} 43. Kf3 {[%emt 0:06:33]} Rf8 {[%emt 0:06:06]} 44. Re2 {[%emt 0:01:20]} Qd7 {[%emt 0:01:02]} 45. Rg2 {[%emt 0:04:44]} e5 {[%emt 0:04:34]} 46. dxe5 {[%emt 0:00:44]} d4 {[%emt 0:00:07]} 47. Qc4+ {[%emt 0:01:07]} Kh8 {[%emt 0:00:08]} 48. b5 {[%emt 0:01:04]} Qh3+ {[%emt 0:02:18]} 49. Rg3 {[%emt 0:00:33]} Qh1+ {[%emt 0:00:08]} 50. Rg2 {[%emt 0:00:15]} h4 {[%emt 0:00:35]} 51. Qc5 {[%emt 0:00:43]} Qh3+ {[%emt 0:00:19]} 52. Kf2 {[%emt 0:00:19]} Qe3+ {[%emt 0:00:07]} 0-1

[Event "37th Zalakaros Festival 2018"]
[Site "Zalakaros"]
[Date "2018.05.27"]
[Round "3"]
[White "Fancsy, Imre"]
[Black "Ongut, Tamas Gunes"]
[Result "1-0"]
[ECO "E68"]
[WhiteElo "2388"]
[BlackElo "2130"]
[Annotator "NA"]
[PlyCount "51"]
[EventDate "2018.??.??"]
[EventType "swiss"]
[EventCountry "HUN"]
[SourceTitle "playchess.com"]
[Source "ChessBase"]
[SourceQuality "1"]
[TimeControl "40/5400+30:1800+30"]

1. Nf3 {[%emt 0:09:36]} g6 {[%emt 0:00:43]} 2. c4 {[%emt 0:02:14]} Bg7 {[%emt 0:00:14]} 3. Nc3 {[%emt 0:03:55]} d6 {[%emt 0:00:58]} 4. d4 {[%emt 0:01:40]} Nf6 {[%emt 0:00:07]} 5. g3 {[%emt 0:00:10]} O-O {[%emt 0:00:16]} 6. Bg2 {[%emt 0:00:05]} Nbd7 {[%emt 0:00:10]} 7. O-O {[%emt 0:00:07]} e5 {[%emt 0:00:05]} 8. e4 {[%emt 0:00:09]} exd4 {[%emt 0:00:06]} 9. Nxd4 {[%emt 0:00:04]} Re8 {[%emt 0:00:05]} 10. h3 {[%emt 0:01:02]} a6 {[%emt 0:00:06]} 11. Be3 {[%emt 0:03:08]} Rb8 {[%emt 0:00:31]} 12. b3 {[%emt 0:01:37]} Ne5 {[%emt 0:00:15]} 13. Rc1 {[%emt 0:03:48]} c5 {[%emt 0:00:28]} 14. Nde2 {[%emt 0:03:52]} b5 {[%emt 0:00:06]} 15. f4 {[%emt 0:02:24]} Ned7 {[%emt 0:00:20]} 16. Qxd6 {[%emt 0:05:10]} b4 {[%emt 0:00:41]} 17. e5 {[%emt 0:06:25]} bxc3 {[%emt 0:00:06]} 18. Qd3 {[%emt 0:01:19]} Nh5 {[%emt 0:18:24]} 19. g4 {[%emt 0:01:35]} Nxf4 {[%emt 0:18:04]} 20. Bxf4 {[%emt 0:00:39]} Bxe5 {[%emt 0:15:05]} 21. Bd5 {[%emt 0:15:27]} Bxf4 {[%emt 0:06:56]} 22. Rxf4 {[%emt 0:02:48]} Ne5 {[%emt 0:00:13]} 23. Qg3 {[%emt 0:02:03]} Be6 {[%emt 0:09:28]} 24. Nxc3 {[%emt 0:00:39]} Qa5 {[%emt 0:08:50]} 25. Rcf1 {[%emt 0:05:31]} Rbd8 {[%emt 0:05:48]} 26. g5 {[%emt 0:04:44]} 1-0

[Event "37th Zalakaros Festival 2018"]
[Site "Zalakaros"]
[Date "2018.05.27"]
[Round "3"]
[White "Szeberenyi, Adam"]
[Black "Gaal, Zsoka"]
[Result "1-0"]
[ECO "E61"]
[WhiteElo "2372"]
[BlackElo "2095"]
[Annotator "NA"]
[PlyCount "77"]
[EventDate "2018.??.??"]
[EventType "swiss"]
[EventCountry "HUN"]
[SourceTitle "playchess.com"]
[Source "ChessBase"]
[SourceQuality "1"]
[TimeControl "40/5400+30:1800+30"]

1. d4 {[%emt 0:00:03]} Nf6 {[%emt 0:01:06]} 2. c4 {[%emt 0:00:06]} g6 {[%emt 0:00:23]} 3. Nc3 {[%emt 0:00:04]} Bg7 {[%emt 0:00:23]} 4. Nf3 {[%emt 0:01:14]} d6 {[%emt 0:00:20]} 5. Bg5 {[%emt 0:01:58]} O-O {[%emt 0:00:20]} 6. e3 {[%emt 0:00:04]} c5 {[%emt 0:00:37]} 7. Qd2 {[%emt 0:06:46]} Bf5 {[%emt 0:09:04]} 8. Rd1 {[%emt 0:11:57]} cxd4 {[%emt 0:04:51]} 9. Nxd4 {[%emt 0:02:42]} Bd7 {[%emt 0:05:27]} 10. Be2 {[%emt 0:00:46]} Nc6 {[%emt 0:04:20]} 11. O-O {[%emt 0:02:37]} Rc8 {[%emt 0:03:55]} 12. b3 {[%emt 0:00:26]} Re8 {[%emt 0:04:42]} 13. Bh4 {[%emt 0:04:40]} Nxd4 {[%emt 0:10:59]} 14. exd4 {[%emt 0:01:33]} a6 {[%emt 0:09:14]} 15. Rfe1 {[%emt 0:12:13]} Be6 {[%emt 0:05:43]} 16. Bf3 {[%emt 0:01:29]} Qc7 {[%emt 0:04:29]} 17. Rc1 {[%emt 0:06:28]} Qb8 {[%emt 0:11:23]} 18. Bg3 {[%emt 0:06:41]} Qa7 {[%emt 0:04:03]} 19. Bf4 {[%emt 0:00:51]} Bg4 {[%emt 0:02:35]} 20. Bxg4 {[%emt 0:06:13]} Nxg4 {[%emt 0:00:02]} 21. h3 {[%emt 0:08:32]} Nf6 {[%emt 0:01:12]} 22. Bg5 {[%emt 0:00:25]} e6 {[%emt 0:05:43]} 23. Rcd1 {[%emt 0:05:38]} Qb8 {[%emt 0:04:51]} 24. Qf4 {[%emt 0:01:43]} Nd7 {[%emt 0:01:17]} 25. Ne4 {[%emt 0:04:04]} e5 {[%emt 0:00:56]} 26. dxe5 {[%emt 0:01:13]} Bxe5 {[%emt 0:01:48]} 27. Qd2 {[%emt 0:00:58]} f5 {[%emt 0:00:48]} 28. Nc3 {[%emt 0:03:52]} Nc5 {[%emt 0:01:10]} 29. Nd5 {[%emt 0:01:59]} Ne4 {[%emt 0:00:56]} 30. Rxe4 {[%emt 0:01:46]} fxe4 {[%emt 0:00:30]} 31. Ne7+ {[%emt 0:00:23]} Kh8 {[%emt 0:00:44]} 32. Qd5 {[%emt 0:02:01]} h6 {[%emt 0:01:27]} 33. Qf7 {[%emt 0:01:18]} Rxe7 {[%emt 0:00:41]} 34. Bxe7 {[%emt 0:00:06]} Rg8 35. Bf6+ {[%emt 0:01:52]} Bxf6 {[%emt 0:00:57]} 36. Qxf6+ {[%emt 0:00:04]} Kh7 {[%emt 0:00:35]} 37. Rxd6 {[%emt 0:00:13]} Rg7 {[%emt 0:00:32]} 38. Rd8 {[%emt 0:00:52]} Qc7 {[%emt 0:00:29]} 39. Qf8 {[%emt 0:00:08]} 1-0

[Event "37th Zalakaros Festival 2018"]
[Site "Zalakaros"]
[Date "2018.05.27"]
[Round "3"]
[White "Srinath, Rao S V"]
[Black "Szalanczy, Emil"]
[Result "1-0"]
[ECO "B22"]
[WhiteElo "2363"]
[BlackElo "2233"]
[Annotator "NA"]
[PlyCount "95"]
[EventDate "2018.??.??"]
[EventType "swiss"]
[EventCountry "HUN"]
[SourceTitle "playchess.com"]
[Source "ChessBase"]
[SourceQuality "1"]
[TimeControl "40/5400+30:1800+30"]

1. e4 {[%emt 0:00:04]} c5 {[%emt 0:00:31]} 2. c3 {[%emt 0:00:36]} d6 {[%emt 0:00:03]} 3. d4 {[%emt 0:00:03]} Nf6 {[%emt 0:00:03]} 4. Bd3 {[%emt 0:00:04]} g6 {[%emt 0:00:06]} 5. dxc5 {[%emt 0:00:30]} dxc5 {[%emt 0:00:30]} 6. e5 {[%emt 0:00:05]} c4 {[%emt 0:00:19]} 7. Qa4+ {[%emt 0:00:50]} Nc6 {[%emt 0:00:12]} 8. Bxc4 {[%emt 0:00:08]} Nd7 {[%emt 0:00:12]} 9. e6 {[%emt 0:00:09]} fxe6 {[%emt 0:00:03]} 10. Qc2 {[%emt 0:00:21]} Nb6 {[%emt 0:03:11]} 11. Be2 {[%emt 0:00:32]} e5 {[%emt 0:03:27]} 12. Nf3 {[%emt 0:12:50]} Bf5 {[%emt 0:06:06]} 13. Qb3 {[%emt 0:00:04]} Qd5 {[%emt 0:04:27]} 14. Be3 {[%emt 0:02:38]} Qxb3 {[%emt 0:01:54]} 15. axb3 {[%emt 0:08:42]} Nd5 {[%emt 0:00:03]} 16. Bb5 {[%emt 0:07:38]} Bg7 {[%emt 0:09:58]} 17. Nbd2 {[%emt 0:00:12]} Nxe3 {[%emt 0:07:27]} 18. fxe3 {[%emt 0:00:07]} O-O {[%emt 0:00:12]} 19. Nc4 {[%emt 0:04:28]} Be4 {[%emt 0:08:06]} 20. Ncd2 {[%emt 0:01:56]} Bf5 {[%emt 0:08:44]} 21. Bxc6 {[%emt 0:02:24]} bxc6 {[%emt 0:00:06]} 22. Ra5 {[%emt 0:00:11]} e4 {[%emt 0:07:59]} 23. Nd4 {[%emt 0:03:28]} Bh6 {[%emt 0:04:43]} 24. Nc4 {[%emt 0:01:23]} Rf6 {[%emt 0:05:52]} 25. Rf1 {[%emt 0:02:36]} Raf8 {[%emt 0:02:47]} 26. Rxa7 {[%emt 0:02:01]} e5 {[%emt 0:01:29]} 27. Nxf5 {[%emt 0:01:53]} gxf5 {[%emt 0:00:56]} 28. Re7 {[%emt 0:00:31]} f4 {[%emt 0:01:59]} 29. Nxe5 {[%emt 0:01:44]} Rd6 {[%emt 0:06:33]} 30. Ng4 {[%emt 0:03:27]} Bg5 {[%emt 0:02:58]} 31. Rxe4 {[%emt 0:00:29]} Rfd8 {[%emt 0:03:45]} 32. exf4 {[%emt 0:00:53]} Bh4+ {[%emt 0:02:31]} 33. g3 {[%emt 0:00:13]} h5 {[%emt 0:00:52]} 34. Ne3 {[%emt 0:04:03]} Bf6 {[%emt 0:00:28]} 35. Rf2 {[%emt 0:01:02]} Rd3 {[%emt 0:03:10]} 36. Re2 {[%emt 0:01:05]} Kf7 {[%emt 0:00:58]} 37. Kf2 {[%emt 0:01:16]} h4 38. Ng4 {[%emt 0:00:08]} hxg3+ {[%emt 0:02:54]} 39. hxg3 {[%emt 0:00:30]} Rh8 {[%emt 0:00:09]} 40. Re6 {[%emt 0:00:00]} Bd8 {[%emt 0:01:00]} 41. Rxc6 {[%emt 0:02:29]} Rd1 {[%emt 0:01:14]} 42. Rh6 {[%emt 0:03:14]} Rxh6 {[%emt 0:13:11]} 43. Nxh6+ {[%emt 0:00:04]} Kg6 {[%emt 0:00:03]} 44. Re6+ {[%emt 0:00:04]} Kh5 {[%emt 0:01:23]} 45. Nf7 {[%emt 0:00:15]} Bc7 {[%emt 0:01:12]} 46. Kf3 {[%emt 0:04:48]} Rf1+ {[%emt 0:00:35]} 47. Ke4 {[%emt 0:00:13]} Bxf4 {[%emt 0:00:50]} 48. gxf4 {[%emt 0:00:25]} 1-0

[Event "37th Zalakaros Festival 2018"]
[Site "Zalakaros"]
[Date "2018.05.27"]
[Round "3"]
[White "Krykun, Yuriy"]
[Black "Dmitrovic, Zoran"]
[Result "1-0"]
[ECO "A05"]
[WhiteElo "2338"]
[BlackElo "2069"]
[Annotator "NA"]
[PlyCount "99"]
[EventDate "2018.??.??"]
[EventType "swiss"]
[EventCountry "HUN"]
[SourceTitle "playchess.com"]
[Source "ChessBase"]
[SourceQuality "1"]
[TimeControl "40/5400+30:1800+30"]

1. Nf3 {[%emt 0:00:28]} Nf6 {[%emt 0:00:51]} 2. g3 {[%emt 0:00:21]} g6 {[%emt 0:00:18]} 3. Bg2 {[%emt 0:00:05]} Bg7 {[%emt 0:00:06]} 4. O-O {[%emt 0:00:04]} O-O {[%emt 0:00:25]} 5. d4 {[%emt 0:00:05]} d6 {[%emt 0:00:42]} 6. b3 {[%emt 0:00:07]} Nbd7 {[%emt 0:00:56]} 7. Bb2 {[%emt 0:00:06]} e5 {[%emt 0:00:52]} 8. dxe5 {[%emt 0:00:24]} Ng4 {[%emt 0:00:10]} 9. c4 {[%emt 0:00:17]} dxe5 {[%emt 0:02:45]} 10. h3 {[%emt 0:04:36]} Nh6 {[%emt 0:01:01]} 11. Nc3 {[%emt 0:00:56]} Re8 {[%emt 0:06:34]} 12. e4 {[%emt 0:03:03]} c6 {[%emt 0:00:26]} 13. Qd2 {[%emt 0:08:28]} f6 {[%emt 0:06:38]} 14. Rad1 {[%emt 0:04:52]} Nf7 {[%emt 0:00:54]} 15. h4 {[%emt 0:11:28]} Nf8 {[%emt 0:06:27]} 16. Qc2 {[%emt 0:08:23]} Qe7 {[%emt 0:01:20]} 17. Ne2 {[%emt 0:01:15]} Bg4 {[%emt 0:07:44]} 18. Nh2 {[%emt 0:00:14]} Bd7 {[%emt 0:02:44]} 19. Qc1 {[%emt 0:06:59]} Bh6 {[%emt 0:03:16]} 20. Qc3 {[%emt 0:01:39]} g5 {[%emt 0:12:26]} 21. hxg5 {[%emt 0:02:55]} Nxg5 {[%emt 0:06:54]} 22. Bc1 {[%emt 0:04:20]} Qg7 {[%emt 0:02:25]} 23. Qc2 {[%emt 0:15:44]} Nh3+ {[%emt 0:14:54]} 24. Kh1 {[%emt 0:03:16]} Bxc1 {[%emt 0:02:08]} 25. Qxc1 {[%emt 0:00:39]} Rad8 {[%emt 0:02:54]} 26. Qe3 {[%emt 0:01:51]} b6 {[%emt 0:03:35]} 27. c5 {[%emt 0:01:12]} b5 {[%emt 0:00:49]} 28. Rd6 {[%emt 0:00:31]} Ng5 {[%emt 0:00:57]} 29. Rfd1 {[%emt 0:01:08]} Nf7 {[%emt 0:00:40]} 30. R6d2 {[%emt 0:01:08]} Bc8 {[%emt 0:03:36]} 31. Nf3 {[%emt 0:02:01]} Ng6 {[%emt 0:03:56]} 32. Kg1 {[%emt 0:04:07]} Qf8 {[%emt 0:00:35]} 33. b4 {[%emt 0:00:45]} Qe7 {[%emt 0:00:20]} 34. Nc1 {[%emt 0:00:35]} Be6 {[%emt 0:03:44]} 35. Nb3 {[%emt 0:00:28]} Bxb3 {[%emt 0:00:16]} 36. Qxb3 {[%emt 0:01:09]} Kg7 {[%emt 0:00:45]} 37. a4 {[%emt 0:02:59]} a6 {[%emt 0:00:18]} 38. Bh3 {[%emt 0:00:57]} Rxd2 {[%emt 0:01:29]} 39. Rxd2 {[%emt 0:00:01]} Rd8 {[%emt 0:01:12]} 40. Rxd8 {[%emt 0:00:00]} Nxd8 {[%emt 0:01:04]} 41. Bc8 {[%emt 0:08:59]} a5 {[%emt 0:05:39]} 42. bxa5 {[%emt 0:09:18]} Qxc5 {[%emt 0:06:44]} 43. Qd1 {[%emt 0:00:26]} Qe7 {[%emt 0:05:08]} 44. a6 {[%emt 0:01:25]} Nf8 {[%emt 0:02:05]} 45. Nh4 {[%emt 0:11:16]} Qc7 {[%emt 0:02:00]} 46. Nf5+ {[%emt 0:00:11]} Kh8 {[%emt 0:00:52]} 47. Qd6 {[%emt 0:01:28]} Qxd6 {[%emt 0:00:44]} 48. Nxd6 {[%emt 0:00:09]} Nfe6 {[%emt 0:00:35]} 49. Nf7+ {[%emt 0:01:24]} Nxf7 {[%emt 0:00:38]} 50. Bxe6 {[%emt 0:00:03]} 1-0

[Event "37th Zalakaros Festival 2018"]
[Site "Zalakaros"]
[Date "2018.05.27"]
[Round "3"]
[White "Papp, Gellert"]
[Black "Hardicsay, Peter"]
[Result "0-1"]
[ECO "B32"]
[WhiteElo "2325"]
[BlackElo "2211"]
[Annotator "NA"]
[PlyCount "96"]
[EventDate "2018.??.??"]
[EventType "swiss"]
[EventCountry "HUN"]
[SourceTitle "playchess.com"]
[Source "ChessBase"]
[SourceQuality "1"]
[TimeControl "40/5400+30:1800+30"]

1. e4 {[%emt 0:00:48]} c5 {[%emt 0:00:39]} 2. Nf3 {[%emt 0:00:11]} Nc6 {[%emt 0:00:09]} 3. d4 {[%emt 0:00:02]} cxd4 {[%emt 0:00:12]} 4. Nxd4 {[%emt 0:00:03]} e5 {[%emt 0:00:24]} 5. Nb5 {[%emt 0:00:26]} d6 {[%emt 0:00:31]} 6. N1c3 {[%emt 0:00:34]} a6 {[%emt 0:00:40]} 7. Na3 {[%emt 0:00:16]} Be7 {[%emt 0:03:27]} 8. Nd5 {[%emt 0:02:44]} Nf6 {[%emt 0:01:54]} 9. Be3 {[%emt 0:01:25]} Nxd5 {[%emt 0:03:58]} 10. exd5 {[%emt 0:00:33]} Nd4 {[%emt 0:07:31]} 11. Bd3 {[%emt 0:07:17]} Nf5 {[%emt 0:09:45]} 12. Bd2 {[%emt 0:03:15]} O-O {[%emt 0:13:47]} 13. O-O {[%emt 0:02:46]} Nh4 {[%emt 0:06:12]} 14. Nc4 {[%emt 0:12:19]} Rb8 {[%emt 0:02:52]} 15. a4 {[%emt 0:02:30]} f5 {[%emt 0:04:09]} 16. f4 {[%emt 0:03:42]} Ng6 {[%emt 0:15:31]} 17. a5 {[%emt 0:06:36]} Nxf4 {[%emt 0:03:02]} 18. Bxf4 {[%emt 0:16:31]} exf4 {[%emt 0:00:17]} 19. Rxf4 {[%emt 0:02:18]} Bg5 {[%emt 0:03:08]} 20. Rf1 {[%emt 0:00:24]} g6 {[%emt 0:00:32]} 21. Qf3 {[%emt 0:01:36]} Qf6 {[%emt 0:04:21]} 22. c3 {[%emt 0:01:52]} Bd7 {[%emt 0:01:32]} 23. Nb6 {[%emt 0:00:43]} Rbd8 {[%emt 0:01:23]} 24. Rae1 {[%emt 0:00:19]} Qg7 {[%emt 0:04:44]} 25. Qg3 {[%emt 0:06:37]} Be7 {[%emt 0:00:26]} 26. Nxd7 {[%emt 0:07:18]} Rxd7 {[%emt 0:00:08]} 27. Re6 {[%emt 0:00:03]} Rfd8 {[%emt 0:05:20]} 28. Bc2 {[%emt 0:00:02]} Rc7 {[%emt 0:01:09]} 29. Rfe1 {[%emt 0:06:53]} Bf8 {[%emt 0:01:00]} 30. h4 {[%emt 0:05:51]} Rf7 {[%emt 0:01:15]} 31. Qg5 {[%emt 0:01:46]} Rdd7 {[%emt 0:01:36]} 32. R1e3 {[%emt 0:02:53]} Be7 {[%emt 0:01:06]} 33. Qf4 {[%emt 0:00:21]} Rd8 {[%emt 0:01:09]} 34. h5 {[%emt 0:00:56]} g5 {[%emt 0:00:50]} 35. Qb4 {[%emt 0:00:11]} f4 {[%emt 0:00:52]} 36. Re1 {[%emt 0:01:07]} g4 {[%emt 0:00:29]} 37. Qe4 {[%emt 0:01:41]} Bf8 {[%emt 0:01:03]} 38. Kh1 {[%emt 0:01:16]} Qg5 {[%emt 0:00:23]} 39. h6 {[%emt 0:01:28]} Bxh6 {[%emt 0:01:16]} 40. Re8+ {[%emt 0:00:00]} Rxe8 {[%emt 0:00:11]} 41. Qxe8+ {[%emt 0:00:32]} Bf8 {[%emt 0:02:46]} 42. Qe6 {[%emt 0:10:40]} Qh4+ {[%emt 0:13:20]} 43. Kg1 {[%emt 0:02:25]} f3 {[%emt 0:03:04]} 44. gxf3 Qg3+ 45. Kh1 Qxf3+ 46. Kg1 g3 47. Qe2 Qf2+ 48. Kh1 g2+ 0-1

[Event "37th Zalakaros Festival 2018"]
[Site "Zalakaros"]
[Date "2018.05.27"]
[Round "3"]
[White "Radovanovic, Jovica"]
[Black "Biro, Sandor"]
[Result "1/2-1/2"]
[ECO "D92"]
[WhiteElo "2311"]
[BlackElo "2191"]
[Annotator "NA"]
[PlyCount "41"]
[EventDate "2018.??.??"]
[EventType "swiss"]
[EventCountry "HUN"]
[SourceTitle "playchess.com"]
[Source "ChessBase"]
[SourceQuality "1"]
[TimeControl "40/5400+30:1800+30"]

1. Nf3 {[%emt 0:05:22]} Nf6 {[%emt 0:00:50]} 2. d4 {[%emt 0:00:21]} g6 {[%emt 0:00:06]} 3. c4 {[%emt 0:00:12]} Bg7 {[%emt 0:00:08]} 4. Nc3 {[%emt 0:00:27]} d5 {[%emt 0:00:08]} 5. Bf4 {[%emt 0:02:51]} O-O {[%emt 0:00:20]} 6. Rc1 {[%emt 0:01:05]} Be6 {[%emt 0:06:58]} 7. Ng5 {[%emt 0:09:02]} c5 {[%emt 0:00:19]} 8. dxc5 {[%emt 0:25:46]} d4 {[%emt 0:18:27]} 9. Nb5 {[%emt 0:01:05]} Nc6 {[%emt 0:05:08]} 10. Nc7 {[%emt 0:10:34]} Nh5 {[%emt 0:43:59]} 11. Ncxe6 {[%emt 0:10:43]} fxe6 {[%emt 0:00:07]} 12. Nxe6 {[%emt 0:01:51]} Qc8 {[%emt 0:00:05]} 13. Nxf8 {[%emt 0:00:14]} Nxf4 {[%emt 0:00:12]} 14. g3 {[%emt 0:00:18]} Nh3 {[%emt 0:09:49]} 15. Nxg6 {[%emt 0:06:37]} hxg6 {[%emt 0:00:26]} 16. Qc2 {[%emt 0:04:41]} Ne5 {[%emt 0:06:21]} 17. Rd1 {[%emt 0:08:48]} Qc6 {[%emt 0:03:19]} 18. f3 {[%emt 0:00:06]} Ng5 {[%emt 0:00:49]} 19. Bg2 {[%emt 0:04:41]} Qxc5 {[%emt 0:00:37]} 20. f4 {[%emt 0:02:21]} d3 21. Rxd3 1/2-1/2

[Event "37th Zalakaros Festival 2018"]
[Site "Zalakaros"]
[Date "2018.05.27"]
[Round "3"]
[White "Ianov, Viktor"]
[Black "Kosztolanczi, Gyula"]
[Result "1/2-1/2"]
[ECO "A08"]
[WhiteElo "2285"]
[BlackElo "2130"]
[Annotator "NA"]
[PlyCount "136"]
[EventDate "2018.??.??"]
[EventType "swiss"]
[EventCountry "HUN"]
[SourceTitle "playchess.com"]
[Source "ChessBase"]
[SourceQuality "1"]
[TimeControl "40/5400+30:1800+30"]

1. Nf3 {[%emt 0:03:08]} d5 {[%emt 0:00:52]} 2. g3 {[%emt 0:00:09]} c5 {[%emt 0:00:10]} 3. Bg2 {[%emt 0:00:09]} Nc6 {[%emt 0:00:06]} 4. d4 {[%emt 0:00:08]} e6 {[%emt 0:01:19]} 5. O-O {[%emt 0:00:21]} Nf6 {[%emt 0:00:07]} 6. c4 {[%emt 0:00:07]} dxc4 {[%emt 0:01:40]} 7. Qa4 {[%emt 0:03:40]} Bd7 {[%emt 0:04:08]} 8. Qxc4 {[%emt 0:00:40]} Qb6 {[%emt 0:01:34]} 9. dxc5 {[%emt 0:00:44]} Bxc5 {[%emt 0:00:33]} 10. Nc3 {[%emt 0:00:13]} Qb4 {[%emt 0:02:37]} 11. Qxb4 {[%emt 0:02:43]} Bxb4 {[%emt 0:01:37]} 12. Bd2 {[%emt 0:00:31]} O-O {[%emt 0:01:24]} 13. a3 {[%emt 0:00:57]} Be7 {[%emt 0:00:38]} 14. Bf4 {[%emt 0:00:53]} Rac8 {[%emt 0:01:59]} 15. Rfd1 {[%emt 0:01:04]} Rfd8 {[%emt 0:01:05]} 16. Rd3 {[%emt 0:05:39]} Be8 {[%emt 0:02:23]} 17. Rad1 {[%emt 0:00:10]} Rxd3 {[%emt 0:00:33]} 18. Rxd3 {[%emt 0:00:09]} Rd8 {[%emt 0:01:38]} 19. Rxd8 {[%emt 0:01:33]} Bxd8 {[%emt 0:02:50]} 20. Ne5 {[%emt 0:00:30]} Nxe5 {[%emt 0:03:27]} 21. Bxe5 {[%emt 0:00:11]} Bc6 {[%emt 0:04:46]} 22. Bxc6 {[%emt 0:00:19]} bxc6 {[%emt 0:00:04]} 23. Na4 {[%emt 0:03:39]} Nd7 {[%emt 0:02:56]} 24. Bd4 {[%emt 0:03:04]} a6 {[%emt 0:02:18]} 25. e4 {[%emt 0:01:22]} e5 {[%emt 0:01:36]} 26. Bc5 {[%emt 0:01:19]} f6 {[%emt 0:00:59]} 27. Kf1 {[%emt 0:00:22]} Kf7 {[%emt 0:00:12]} 28. Ke2 {[%emt 0:00:11]} Be7 {[%emt 0:01:00]} 29. Be3 {[%emt 0:00:27]} Ke6 {[%emt 0:05:14]} 30. Kd3 {[%emt 0:00:42]} f5 {[%emt 0:05:22]} 31. exf5+ {[%emt 0:00:51]} Kxf5 {[%emt 0:00:05]} 32. f3 {[%emt 0:00:06]} h5 {[%emt 0:00:37]} 33. h3 {[%emt 0:02:00]} Nf6 {[%emt 0:08:37]} 34. g4+ {[%emt 0:01:51]} Ke6 {[%emt 0:01:52]} 35. Nc3 {[%emt 0:01:22]} g6 {[%emt 0:04:13]} 36. Bg5 {[%emt 0:11:26]} hxg4 {[%emt 0:02:23]} 37. fxg4 {[%emt 0:03:12]} Nh7 {[%emt 0:11:55]} 38. Bxe7 {[%emt 0:02:18]} Kxe7 {[%emt 0:01:45]} 39. Ne4 {[%emt 0:00:08]} Nf8 {[%emt 0:04:30]} 40. h4 {[%emt 0:00:00]} a5 {[%emt 0:04:01]} 41. a4 {[%emt 0:05:54]} Nd7 {[%emt 0:02:36]} 42. b3 {[%emt 0:00:37]} Nb6 {[%emt 0:02:02]} 43. Nc5 {[%emt 0:06:43]} Nd5 {[%emt 0:05:47]} 44. Nb7 {[%emt 0:00:48]} Nf6 {[%emt 0:00:46]} 45. g5 {[%emt 0:00:26]} Nd7 {[%emt 0:12:25]} 46. Nxa5 {[%emt 0:00:31]} Kd6 {[%emt 0:00:08]} 47. Nc4+ {[%emt 0:01:22]} Kd5 {[%emt 0:00:10]} 48. Ne3+ {[%emt 0:00:32]} Kc5 {[%emt 0:01:39]} 49. Kc3 {[%emt 0:00:13]} Kd6 {[%emt 0:02:23]} 50. b4 {[%emt 0:01:20]} Nb8 {[%emt 0:05:13]} 51. Kc4 {[%emt 0:02:30]} Na6 {[%emt 0:02:34]} 52. Ng4 {[%emt 0:01:21]} e4 {[%emt 0:01:07]} 53. Ne3 {[%emt 0:01:54]} Ke5 {[%emt 0:00:47]} 54. b5 {[%emt 0:00:57]} cxb5+ {[%emt 0:00:29]} 55. axb5 {[%emt 0:00:02]} Nb8 {[%emt 0:03:32]} 56. b6 {[%emt 0:02:11]} Kf4 {[%emt 0:00:51]} 57. b7 {[%emt 0:03:59]} Kxe3 {[%emt 0:05:56]} 58. h5 {[%emt 0:00:16]} Kf3 {[%emt 0:01:54]} 59. hxg6 {[%emt 0:00:35]} e3 {[%emt 0:00:28]} 60. g7 {[%emt 0:00:13]} e2 {[%emt 0:00:16]} 61. g8=Q {[%emt 0:00:08]} e1=Q {[%emt 0:00:36]} 62. Qf8+ {[%emt 0:02:38]} Kg4 {[%emt 0:00:45]} 63. Qc8+ {[%emt 0:01:21]} Kxg5 {[%emt 0:01:10]} 64. Qxb8 {[%emt 0:00:22]} Qc1+ {[%emt 0:01:42]} 65. Kd5 {[%emt 0:00:15]} Qh1+ {[%emt 0:01:13]} 66. Kc5 {[%emt 0:00:44]} Qg1+ {[%emt 0:00:42]} 67. Kc6 {[%emt 0:00:15]} Qh1+ {[%emt 0:00:11]} 68. Kd7 {[%emt 0:01:13]} Qh7+ {[%emt 0:00:17]} 1/2-1/2